fUST/lending_fUST_20250103
["ID","MTS","AMOUNT","RATE_DAILY","PERIOD"]
[347457989,1735833908487,166.279399,0.00013973,2]
[347457993,1735834051886,160.0,0.00023772,120]
[347458014,1735834204843,42.6773841,0.0001,2]
[347458015,1735834204891,108.3226159,0.0001,2]
[347458016,1735834205469,166.1,0.00010548,2]
[347458017,1735834206640,185.62758191,0.00011096,2]
[347458020,1735834231870,160.0,0.00024442,120]
[347458043,1735834233495,-779.0,0.00017622,2]
[347458044,1735834233505,-109.4720842,0.000178,2]
[347458047,1735834233544,-190.5279158,0.000178,2]
[347458048,1735834233553,-479.0,0.000178,2]
[347458050,1735834233563,-12751.62077863,0.00017801,2]
[347458051,1735834233574,-3781.06398276,0.00017801,2]
[347458052,1735834233604,-4149.3497,0.00017801,2]
[347458060,1735834237869,-4217.96553861,0.00017801,2]
[347458061,1735834237880,-266.62774358,0.00017874,14]
[347458062,1735834237889,-161.8305138,0.00017944,2]
[347458063,1735834237899,-14510.38274188,0.00018238,5]
[347458064,1735834237908,-475.832481,0.00018559,2]
[347458065,1735834237918,-5164.75756255,0.00018868,2]
[347458066,1735834237927,-4509.2558175,0.00018882,2]
[347458067,1735834237937,-368.78771321,0.00019078,2]
[347458068,1735834237946,-167.21207957,0.00019178,2]
[347458069,1735834237956,-500.0,0.00019178,2]
[347458070,1735834237965,-188.0,0.00019178,2]
[347458071,1735834237975,-500.0,0.00019178,2]
[347458073,1735834237984,-552.76,0.00019178,2]
[347458075,1735834237994,-500.0,0.00019178,2]
[347458076,1735834238004,-500.0,0.00019178,2]
[347458077,1735834238013,-500.0,0.00019178,2]
[347458078,1735834238022,-590.56354788,0.00019178,2]
[347458079,1735834238032,-500.0,0.00019178,2]
[347458080,1735834238041,-500.0,0.00019178,2]
[347458081,1735834238051,-882.35,0.00019178,2]
[347458082,1735834238060,-500.0,0.00019178,2]
[347458083,1735834238069,-500.0,0.00019178,2]
[347458084,1735834238079,-626.07,0.00019178,2]
[347458085,1735834238091,-500.0,0.00019178,2]
[347458086,1735834238100,-839.12,0.00019178,2]
[347458087,1735834238109,-500.0,0.00019178,2]
[347458088,1735834238119,-500.0,0.00019178,2]
[347458089,1735834238128,-500.0,0.00019178,2]
[347458090,1735834238137,-500.0,0.00019178,2]
[347458091,1735834238146,-500.0,0.00019178,2]
[347458092,1735834238155,-500.0,0.00019178,2]
[347458093,1735834238165,-1502.19,0.00019178,2]
[347458094,1735834238174,-500.0,0.00019178,2]
[347458095,1735834238184,-500.0,0.00019178,2]
[347458096,1735834238193,-500.0,0.00019178,2]
[347458097,1735834238202,-500.0,0.00019178,2]
[347458098,1735834238212,-500.0,0.00019178,2]
[347458099,1735834238221,-500.0,0.00019178,2]
[347458100,1735834238230,-500.0,0.00019178,2]
[347458101,1735834238239,-500.0,0.00019178,2]
[347458102,1735834238249,-500.0,0.00019178,2]
[347458103,1735834238258,-500.0,0.00019178,2]
[347458104,1735834238267,-500.0,0.00019178,2]
[347458105,1735834238276,-500.0,0.00019178,2]
[347458106,1735834238285,-500.0,0.00019178,2]
[347458107,1735834238294,-500.0,0.00019178,2]
[347458108,1735834238302,-500.0,0.00019178,2]
[347458109,1735834238311,-500.0,0.00019178,2]
[347458110,1735834238320,-500.0,0.00019178,2]
[347458111,1735834238330,-152.7,0.00019178,2]
[347458112,1735834238343,-171.648242,0.00019178,2]
[347458113,1735834238353,-192.172,0.00019251,2]
[347458114,1735834238362,-420.0,0.00019426,2]
[347458115,1735834238371,-500.0,0.0001945,2]
[347458116,1735834238381,-212.35838428,0.0001945,2]
[347458117,1735834238390,-500.0,0.0001945,2]
[347458118,1735834238399,-500.0,0.0001945,2]
[347458119,1735834238408,-500.0,0.0001945,2]
[347458120,1735834238417,-500.0,0.0001945,2]
[347458121,1735834238427,-500.0,0.0001945,2]
[347458122,1735834238436,-500.0,0.0001945,2]
[347458123,1735834238445,-500.0,0.0001945,2]
[347458124,1735834238455,-500.0,0.0001945,2]
[347458125,1735834238465,-500.0,0.0001945,2]
[347458126,1735834238474,-500.0,0.0001945,2]
[347458127,1735834238484,-500.0,0.0001945,2]
[347458128,1735834238497,-500.0,0.0001945,2]
[347458129,1735834238507,-500.0,0.0001945,2]
[347458130,1735834238516,-500.0,0.0001945,2]
[347458131,1735834238527,-650.0,0.0001945,2]
[347458132,1735834238536,-500.0,0.0001945,2]
[347458133,1735834238545,-500.0,0.0001945,2]
[347458134,1735834238555,-500.0,0.0001945,2]
[347458135,1735834238566,-500.0,0.0001945,2]
[347458136,1735834238576,-500.0,0.0001945,2]
[347458137,1735834238591,-500.0,0.0001945,2]
[347458138,1735834238601,-500.0,0.0001945,2]
[347458139,1735834238611,-500.0,0.0001945,2]
[347458140,1735834238621,-500.0,0.0001945,2]
[347458141,1735834238632,-500.0,0.0001945,2]
[347458142,1735834238642,-500.0,0.0001945,2]
[347458143,1735834238653,-500.0,0.0001945,2]
[347458144,1735834238663,-500.0,0.0001945,2]
[347458145,1735834238673,-500.0,0.0001945,2]
[347458146,1735834238683,-500.0,0.0001945,2]
[347458147,1735834238693,-500.0,0.0001945,2]
[347458148,1735834238703,-500.0,0.0001945,2]
[347458149,1735834238714,-500.0,0.0001945,2]
[347458150,1735834238724,-500.0,0.0001945,2]
[347458151,1735834238734,-500.0,0.0001945,2]
[347458152,1735834238745,-500.0,0.0001945,2]
[347458153,1735834238755,-500.0,0.0001945,2]
[347458154,1735834238764,-500.0,0.0001945,2]
[347458155,1735834238773,-500.0,0.0001945,2]
[347458156,1735834238783,-500.0,0.0001945,2]
[347458157,1735834238792,-500.0,0.0001945,2]
[347458158,1735834238802,-500.0,0.0001945,2]
[347458159,1735834238811,-500.0,0.0001945,2]
[347458160,1735834238820,-500.0,0.0001945,2]
[347458161,1735834238830,-249.08571951,0.0001945,2]
[347458162,1735834238844,-500.0,0.0001945,2]
[347458163,1735834238853,-500.0,0.0001945,2]
[347458164,1735834238862,-500.0,0.0001945,2]
[347458165,1735834238872,-500.0,0.0001945,2]
[347458166,1735834238881,-500.0,0.0001945,2]
[347458167,1735834238890,-500.0,0.0001945,2]
[347458168,1735834238899,-500.0,0.0001945,2]
[347458169,1735834238909,-500.0,0.0001945,2]
[347458170,1735834238918,-500.0,0.0001945,2]
[347458171,1735834238927,-500.0,0.0001945,2]
[347458172,1735834238937,-500.0,0.0001945,2]
[347458173,1735834238946,-500.0,0.0001945,2]
[347458174,1735834238955,-500.0,0.0001945,2]
[347458175,1735834238964,-500.0,0.0001945,2]
[347458176,1735834238973,-500.0,0.0001945,2]
[347458177,1735834238982,-500.0,0.0001945,2]
[347458178,1735834238992,-500.0,0.00019451,2]
[347458179,1735834239001,-500.0,0.00019451,3]
[347458180,1735834239010,-503.31092398,0.00019451,2]
[347458181,1735834239019,-500.0,0.00019451,3]
[347458182,1735834239028,-500.0,0.00019451,3]
[347458183,1735834239038,-500.0,0.00019451,3]
[347458184,1735834239047,-500.0,0.00019451,3]
[347458185,1735834239056,-500.0,0.00019451,3]
[347458186,1735834239065,-500.0,0.00019451,3]
[347458187,1735834239074,-500.0,0.00019451,3]
[347458188,1735834239086,-500.0,0.00019451,3]
[347458189,1735834239095,-500.0,0.00019451,3]
[347458190,1735834239104,-500.0,0.00019451,3]
[347458191,1735834239113,-500.0,0.00019451,3]
[347458192,1735834239123,-500.0,0.00019451,3]
[347458193,1735834239133,-500.0,0.00019451,3]
[347458194,1735834239142,-500.0,0.00019451,3]
[347458195,1735834239151,-500.0,0.00019451,3]
[347458196,1735834239160,-500.0,0.00019451,3]
[347458197,1735834239170,-500.0,0.00019451,3]
[347458198,1735834239179,-500.0,0.00019451,3]
[347458199,1735834239189,-500.0,0.00019451,3]
[347458200,1735834239198,-500.0,0.00019451,3]
[347458201,1735834239208,-500.0,0.00019451,3]
[347458202,1735834239217,-500.0,0.00019451,3]
[347458203,1735834239226,-500.0,0.00019451,3]
[347458204,1735834239236,-500.0,0.00019451,3]
[347458205,1735834239245,-500.0,0.00019451,3]
[347458206,1735834239255,-500.0,0.00019451,3]
[347458207,1735834239264,-500.0,0.00019451,3]
[347458208,1735834239273,-500.0,0.00019451,3]
[347458209,1735834239283,-500.0,0.00019451,3]
[347458210,1735834239292,-500.0,0.00019451,3]
[347458211,1735834239301,-500.0,0.00019451,2]
[347458212,1735834239310,-500.0,0.00019451,3]
[347458213,1735834239319,-4887.08,0.00019451,3]
[347458214,1735834239329,-500.0,0.00019451,3]
[347458215,1735834239340,-500.0,0.00019451,3]
[347458216,1735834239350,-500.0,0.00019451,3]
[347458217,1735834239359,-500.0,0.00019451,3]
[347458218,1735834239368,-500.0,0.00019451,3]
[347458219,1735834239378,-500.0,0.00019451,3]
[347458220,1735834239387,-500.0,0.00019451,3]
[347458221,1735834239398,-575.25,0.00019451,3]
[347458222,1735834239407,-500.0,0.00019451,3]
[347458223,1735834239417,-500.0,0.00019451,3]
[347458224,1735834239427,-500.0,0.00019451,3]
[347458226,1735834239436,-500.0,0.00019451,3]
[347458227,1735834239446,-500.0,0.00019451,3]
[347458228,1735834239457,-500.0,0.00019451,3]
[347458229,1735834239466,-500.0,0.00019451,3]
[347458230,1735834239475,-500.0,0.00019451,3]
[347458231,1735834239486,-500.0,0.00019451,3]
[347458232,1735834239497,-500.0,0.00019451,3]
[347458233,1735834239507,-500.0,0.00019451,3]
[347458234,1735834239516,-500.0,0.00019451,3]
[347458235,1735834239526,-500.0,0.00019451,3]
[347458236,1735834239535,-500.0,0.00019451,3]
[347458237,1735834239545,-500.0,0.00019451,3]
[347458238,1735834239554,-500.0,0.00019451,3]
[347458239,1735834239564,-434.04994644,0.00019451,3]
[347458241,1735834239574,-488.72527275,0.00019451,3]
[347458242,1735834239586,-435.4660404,0.00019451,3]
[347458243,1735834239595,-500.0,0.00019451,3]
[347458244,1735834239604,-500.0,0.00019451,3]
[347458245,1735834239613,-500.0,0.00019451,3]
[347458246,1735834239623,-500.0,0.00019451,3]
[347458247,1735834239633,-500.0,0.00019451,3]
[347458248,1735834239642,-500.0,0.00019451,3]
[347458249,1735834239652,-500.0,0.00019451,3]
[347458250,1735834239661,-500.0,0.00019451,3]
[347458251,1735834239670,-500.0,0.00019451,3]
[347458252,1735834239680,-500.0,0.00019451,3]
[347458253,1735834239689,-500.0,0.00019451,3]
[347458254,1735834239698,-500.0,0.00019451,3]
[347458255,1735834239707,-188.0,0.00019452,2]
[347458256,1735834239716,-500.0,0.00019452,2]
[347458257,1735834239726,-552.76,0.00019452,3]
[347458258,1735834239853,-500.0,0.00019452,3]
[347458259,1735834239864,-500.0,0.00019452,3]
[347458260,1735834239873,-882.35,0.00019452,3]
[347458261,1735834239883,-626.07,0.00019452,3]
[347458262,1735834239893,-500.0,0.00019452,2]
[347458263,1735834239903,-839.12,0.00019452,3]
[347458264,1735834239912,-500.0,0.00019452,3]
[347458265,1735834239922,-500.0,0.00019452,3]
[347458266,1735834239931,-500.0,0.00019452,3]
[347458267,1735834239940,-500.0,0.00019452,3]
[347458268,1735834239950,-500.0,0.00019452,3]
[347458269,1735834239960,-500.0,0.00019452,3]
[347458270,1735834239970,-1502.19,0.00019452,3]
[347458271,1735834239979,-500.0,0.00019452,3]
[347458272,1735834239988,-449.96,0.00019452,3]
[347458273,1735834239998,-550.07294459,0.00019452,3]
[347458274,1735834240007,-500.0,0.00019452,3]
[347458275,1735834240016,-593.02495306,0.00019452,3]
[347458276,1735834240026,-500.0,0.00019452,3]
[347458277,1735834240035,-500.0,0.00019452,3]
[347458278,1735834240045,-500.0,0.00019452,3]
[347458279,1735834240054,-152.43,0.00019452,3]
[347458280,1735834240063,-500.0,0.00019452,3]
[347458281,1735834240072,-501.46942713,0.00019725,2]
[347458282,1735834240082,-500.0,0.00019725,3]
[347458283,1735834240092,-500.0,0.00019725,3]
[347458284,1735834240101,-500.0,0.00019725,2]
[347458285,1735834240110,-4887.08,0.00019725,3]
[347458286,1735834240120,-460.62,0.00019725,3]
[347458287,1735834240130,-552.76,0.00019726,3]
[347458288,1735834240139,-500.8970968,0.00019726,3]
[347458289,1735834240148,-500.0,0.00019726,3]
[347458290,1735834240158,-882.35,0.00019726,3]
[347458291,1735834240167,-626.07,0.00019726,3]
[347458292,1735834240177,-839.12,0.00019726,3]
[347458293,1735834240187,-500.0,0.00019726,3]
[347458294,1735834240197,-500.0,0.00019726,3]
[347458295,1735834240206,-500.0,0.00019726,3]
[347458296,1735834240215,-500.0,0.00019726,3]
[347458297,1735834240226,-500.0,0.00019726,3]
[347458298,1735834240235,-552.0,0.00019726,3]
[347458299,1735834240244,-1502.19,0.00019726,3]
[347458300,1735834240254,-500.0,0.00019726,3]
[347458301,1735834240264,-500.0,0.00019726,3]
[347458302,1735834240273,-500.0,0.00019726,3]
[347458303,1735834240282,-500.0,0.00019726,3]
[347458304,1735834240291,-500.0,0.00019726,3]
[347458305,1735834240299,-500.0,0.00019726,3]
[347458306,1735834240308,-1008.18,0.00019852,2]
[347458307,1735834240317,-1047.67,0.00019997,3]
[347458308,1735834240327,-500.0,0.00019997,3]
[347458309,1735834240337,-500.0,0.00019997,3]
[347458310,1735834240346,-689.92,0.00019997,3]
[347458311,1735834240356,-500.0,0.00019999,3]
[347458312,1735834240365,-515.01,0.00019999,3]
[347458313,1735834240374,-500.0,0.00019999,2]
[347458314,1735834240383,-4887.08,0.00019999,3]
[347458315,1735834240393,-7729.0,0.0002,2]
[347458316,1735834240401,-552.76,0.0002,3]
[347458317,1735834240410,-882.35,0.0002,3]
[347458318,1735834240419,-626.07,0.0002,3]
[347458319,1735834240428,-839.12,0.0002,3]
[347458320,1735834240437,-500.0,0.0002,3]
[347458321,1735834240446,-500.0,0.0002,3]
[347458322,1735834240455,-500.0,0.0002,3]
[347458323,1735834240466,-500.0,0.0002,3]
[347458324,1735834240475,-500.0,0.0002,3]
[347458325,1735834240484,-500.0,0.0002,3]
[347458326,1735834240497,-1502.19,0.0002,3]
[347458327,1735834240506,-500.0,0.0002,3]
[347458328,1735834240515,-500.0,0.0002,3]
[347458329,1735834240524,-500.0,0.0002,3]
[347458330,1735834240533,-500.0,0.0002,3]
[347458331,1735834240542,-500.0,0.000202,2]
[347458332,1735834240553,-500.0,0.000202,2]
[347458333,1735834240563,-1047.67,0.00020271,3]
[347458334,1735834240573,-344.88,0.00020271,3]
[347458335,1735834240585,-689.92,0.00020271,3]
[347458336,1735834240594,-500.0,0.00020272,3]
[347458337,1735834240603,-552.76,0.00020273,3]
[347458338,1735834240612,-500.0,0.00020273,3]
[347458339,1735834240622,-882.35,0.00020273,3]
[347458340,1735834240632,-626.07,0.00020273,3]
[347458341,1735834240642,-500.0,0.00020273,2]
[347458342,1735834240652,-839.12,0.00020273,3]
[347458343,1735834240661,-4887.08,0.00020273,3]
[347458344,1735834240671,-500.0,0.00020273,3]
[347458345,1735834240680,-500.0,0.00020273,3]
[347458346,1735834240690,-500.0,0.00020273,3]
[347458347,1735834240700,-500.0,0.00020273,3]
[347458348,1735834240709,-1502.19,0.00020273,3]
[347458349,1735834240719,-527.48212174,0.00020273,3]
[347458350,1735834240729,-500.0,0.00020273,3]
[347458351,1735834240739,-500.0,0.00020273,3]
[347458352,1735834240749,-500.0,0.00020273,3]
[347458353,1735834240758,-665.46022398,0.00020446,2]
[347458354,1735834240767,-1047.67,0.00020545,3]
[347458355,1735834240777,-689.92,0.00020545,3]
[347458356,1735834240786,-552.76,0.00020547,3]
[347458357,1735834240796,-500.0,0.00020547,3]
[347458358,1735834240807,-882.35,0.00020547,3]
[347458359,1735834240816,-626.07,0.00020547,3]
[347458360,1735834240826,-500.0,0.00020547,2]
[347458361,1735834240837,-839.12,0.00020547,3]
[347458362,1735834240847,-4887.08,0.00020547,3]
[347458363,1735834240856,-500.0,0.00020547,3]
[347458364,1735834240865,-500.0,0.00020547,3]
[347458365,1735834240875,-165.13636044,0.00020547,3]
[347458366,1735834240885,-500.0,0.00020547,3]
[347458367,1735834240894,-1502.19,0.00020547,3]
[347458368,1735834240903,-426.88128245,0.00020547,3]
[347458369,1735834240914,-500.0,0.00020573,2]
[347458370,1735834240923,-328.63936266,0.00020573,2]
[347458371,1735834240933,-500.0,0.00020573,2]
[347458372,1735834240942,-500.0,0.00020573,2]
[347458373,1735834240952,-166.10828816,0.00020573,2]
[347458374,1735834240961,-12179.48790951,0.00020725,2]
[347458375,1735834240970,-500.0,0.00020748,2]
[347458376,1735834240982,-500.0,0.00020748,2]
[347458377,1735834240991,-1047.67,0.00020819,3]
[347458378,1735834241000,-689.92,0.00020819,3]
[347458379,1735834241010,-552.76,0.00020821,3]
[347458380,1735834241019,-232.62844568,0.00020821,3]
[347458381,1735834241028,-882.35,0.00020821,3]
[347458382,1735834241038,-626.07,0.00020821,3]
[347458383,1735834241047,-632.35,0.00020821,2]
[347458384,1735834241057,-839.12,0.00020821,3]
[347458385,1735834241066,-4887.08,0.00020821,3]
[347458386,1735834241075,-500.0,0.00020821,3]
[347458387,1735834241086,-500.0,0.00020821,3]
[347458388,1735834241095,-500.0,0.00020821,3]
[347458389,1735834241104,-1502.19,0.00020821,3]
[347458390,1735834241114,-162.3297536,0.000209,2]
[347458391,1735834241123,-665.46022394,0.00020962,2]
[347458392,1735834241132,-12179.48790951,0.00020989,2]
[347458393,1735834241141,-3000.0,0.00021,2]
[347458394,1735834241150,-3000.0,0.0002101,2]
[347458395,1735834241159,-3000.0,0.0002102,2]
[347458396,1735834241169,-3000.0,0.0002103,2]
[347458397,1735834241179,-3000.0,0.0002104,2]
[347458398,1735834241188,-3000.0,0.0002105,2]
[347458399,1735834241198,-3000.0,0.0002106,2]
[347458400,1735834241208,-3000.0,0.0002107,2]
[347458401,1735834241217,-500.0,0.00021073,2]
[347458402,1735834241227,-500.0,0.00021073,2]
[347458403,1735834241236,-500.35136097,0.00021073,2]
[347458404,1735834241245,-4661.754535,0.0002108,2]
[347458405,1735834241254,-162.32975359,0.00021082,2]
[347458406,1735834241263,-1047.67,0.00021093,3]
[347458407,1735834241272,-689.92,0.00021093,3]
[347458408,1735834241282,-552.76,0.00021095,3]
[347458409,1735834241291,-882.35,0.00021095,3]
[347458410,1735834241300,-626.07,0.00021095,3]
[347458411,1735834241309,-839.12,0.00021095,3]
[347458412,1735834241318,-4887.08,0.00021095,3]
[347458413,1735834241328,-500.0,0.00021095,3]
[347458414,1735834241338,-500.0,0.00021095,3]
[347458415,1735834241347,-500.0,0.00021095,3]
[347458416,1735834241356,-1502.19,0.00021095,3]
[347458417,1735834241365,-1000.0,0.00021121,2]
[347458418,1735834241375,-501.50112158,0.00021121,2]
[347458419,1735834241384,-394.0,0.00021165,2]
[347458420,1735834241394,-587.0,0.000212,2]
[347458421,1735834241403,-12179.48790951,0.00021255,2]
[347458422,1735834241413,-162.32975359,0.00021264,2]
[347458423,1735834241422,-1047.67,0.00021367,3]
[347458424,1735834241431,-689.92,0.00021367,3]
[347458425,1735834241440,-552.76,0.00021369,3]
[347458426,1735834241450,-882.35,0.00021369,3]
[347458427,1735834241460,-626.07,0.00021369,3]
[347458428,1735834241469,-839.12,0.00021369,3]
[347458429,1735834241478,-4887.08,0.00021369,3]
[347458430,1735834241489,-500.0,0.00021369,3]
[347458431,1735834241499,-500.0,0.00021369,3]
[347458432,1735834241509,-500.0,0.00021369,3]
[347458433,1735834241519,-1502.19,0.00021369,3]
[347458434,1735834241530,-162.32975359,0.00021445,2]
[347458435,1735834241541,-665.46022394,0.00021477,2]
[347458436,1735834241551,-646.939,0.0002148,2]
[347458437,1735834241560,-7729.0,0.000216,4]
[347458438,1735834241571,-500.0,0.00021621,2]
[347458439,1735834241580,-500.0,0.00021621,2]
[347458440,1735834241591,-162.32975359,0.00021627,2]
[347458441,1735834241600,-12179.48790951,0.00021637,2]
[347458442,1735834241610,-1047.67,0.00021641,3]
[347458443,1735834241619,-689.92,0.00021641,3]
[347458444,1735834241629,-552.76,0.00021643,3]
[347458445,1735834241638,-882.35,0.00021643,3]
[347458446,1735834241647,-626.07,0.00021643,3]
[347458447,1735834241657,-839.12,0.00021643,3]
[347458448,1735834241666,-4887.08,0.00021643,3]
[347458449,1735834241676,-500.0,0.00021643,3]
[347458450,1735834241685,-500.0,0.00021643,3]
[347458451,1735834241694,-500.0,0.00021643,3]
[347458452,1735834241704,-1502.19,0.00021643,3]
[347458453,1735834241713,-12179.48790951,0.00021796,2]
[347458454,1735834241722,-162.32975359,0.00021809,2]
[347458455,1735834241731,-1047.67,0.00021915,3]
[347458456,1735834241740,-253.03893659,0.00021916,2]
[347458457,1735834241749,-500.0,0.00021916,2]
[347458458,1735834241758,-546.13464209,0.00021916,2]
[347458459,1735834241768,-529.02885839,0.00021916,2]
[347458460,1735834241778,-500.0,0.00021916,2]
[347458461,1735834241788,-552.76,0.00021917,3]
[347458462,1735834241797,-882.35,0.00021917,3]
[347458463,1735834241806,-626.07,0.00021917,3]
[347458464,1735834241816,-4887.08,0.00021917,3]
[347458465,1735834241825,-839.12,0.00021917,3]
[347458466,1735834241835,-576.11181716,0.00021917,3]
[347458467,1735834241844,-500.0,0.00021917,3]
[347458468,1735834241853,-500.0,0.00021917,3]
[347458469,1735834241863,-1502.19,0.00021917,3]
[347458470,1735834241872,-162.32975359,0.00021991,2]
[347458471,1735834241881,-665.46022394,0.00021993,2]
[347458472,1735834241891,-150.0,0.00022,2]
[347458473,1735834241900,-15097.0,0.00022,7]
[347458474,1735834241910,-1001.527065,0.00022,2]
[347458475,1735834241919,-308.0,0.00022,2]
[347458476,1735834241929,-12179.48790951,0.00022071,2]
[347458477,1735834241938,-216.395,0.00022088,2]
[347458478,1735834241947,-150.0,0.00022089,2]
[347458479,1735834241957,-150.0,0.00022089,2]
[347458480,1735834241966,-534.0,0.00022089,2]
[347458481,1735834241975,-2089.0,0.00022089,2]
[347458482,1735834241985,-1258.11,0.00022089,2]
[347458483,1735834241994,-151.0,0.000221,10]
[347458484,1735834242004,-500.0,0.00022122,2]
[347458485,1735834242013,-7610.32247717,0.0002213,2]
[347458486,1735834242022,-5000.0,0.0002213,2]
[347458487,1735834242031,-5000.0,0.0002213,2]
[347458488,1735834242040,-5000.0,0.0002213,2]
[347458489,1735834242050,-162.32975359,0.00022173,2]
[347458490,1735834242060,-1047.67,0.00022189,3]
[347458491,1735834242069,-552.76,0.00022191,3]
[347458492,1735834242079,-882.35,0.00022191,3]
[347458493,1735834242090,-626.07,0.00022191,3]
[347458494,1735834242099,-4887.08,0.00022191,3]
[347458495,1735834242109,-839.12,0.00022191,3]
[347458496,1735834242118,-500.0,0.00022191,3]
[347458497,1735834242128,-500.0,0.00022191,3]
[347458498,1735834242137,-1502.19,0.00022191,3]
[347458499,1735834242147,-308.0,0.00022192,2]
[347458500,1735834242156,-278.26311,0.000222,2]
[347458501,1735834242166,-12179.48790956,0.00022204,2]
[347458502,1735834242176,-600.0,0.00022294,2]
[347458503,1735834242185,-151.0,0.000223,10]
[347458504,1735834242195,-151.0,0.000223,6]
[347458505,1735834242204,-162.32975359,0.00022355,2]
[347458506,1735834242214,-151.0,0.00022371,7]
[347458507,1735834242224,-3000.0,0.000224,2]
[347458508,1735834242233,-6105.27696587,0.00022408,7]
[347458509,1735834242242,-1047.67,0.00022463,3]
[347458510,1735834242252,-552.76,0.00022465,3]
[347458511,1735834242263,-882.35,0.00022465,3]
[347458512,1735834242272,-626.07,0.00022465,3]
[347458513,1735834242282,-4887.08,0.00022465,3]
[347458514,1735834242291,-839.12,0.00022465,3]
[347458515,1735834242300,-500.0,0.00022465,3]
[347458516,1735834242309,-500.0,0.00022465,3]
[347458517,1735834242318,-1502.19,0.00022465,3]
[347458518,1735834242327,-467.47,0.00022465,3]
[347458519,1735834242338,-13469.17357583,0.00022484,14]
[347458520,1735834242348,-151.0,0.000225,10]
[347458521,1735834242359,-752.84,0.000225,2]
[347458522,1735834242369,-313.0,0.000225,10]
[347458523,1735834242378,-1000.0,0.000225,2]
[347458524,1735834242388,-151.0,0.000225,6]
[347458525,1735834242397,-665.46022394,0.00022508,2]
[347458526,1735834242406,-12559.89672298,0.00022513,2]
[347458527,1735834242415,-162.32975359,0.00022536,2]
[347458528,1735834242425,-500.0,0.00022593,8]
[347458529,1735834242435,-187.0,0.000226,2]
[347458530,1735834242445,-24521.89882192,0.00022608,2]
[347458531,1735834242455,-188461.80730472,0.00022608,2]
[347458532,1735834242464,-402.646559,0.00022608,7]
[347458533,1735834242474,-402.646559,0.00022608,7]
[347458534,1735834242484,-402.646559,0.00022608,7]
[347458535,1735834242497,-402.646559,0.00022608,7]
[347458537,1735834242506,-402.646559,0.00022608,7]
[347458538,1735834242516,-402.646559,0.00022608,7]
[347458539,1735834242526,-402.646559,0.00022608,7]
[347458540,1735834242535,-402.646559,0.00022608,7]
[347458541,1735834242545,-402.646559,0.00022608,7]
[347458542,1735834242554,-402.646559,0.00022608,7]
[347458543,1735834242564,-402.646559,0.00022608,7]
[347458544,1735834242575,-402.646559,0.00022608,7]
[347458545,1735834242584,-402.646559,0.00022608,7]
[347458546,1735834242594,-402.646559,0.00022608,7]
[347458547,1735834242603,-402.646559,0.00022608,7]
[347458548,1735834242613,-402.646559,0.00022608,7]
[347458550,1735834242623,-402.646559,0.00022608,7]
[347458552,1735834242633,-402.646559,0.00022608,7]